[Event "Czech Open Rapid G1 2024"]
[Site "Pardubice"]
[Date "2024.07.18"]
[Round "4.3"]
[White "Movsesian, Julia"]
[Black "Stocek, Jiri"]
[Result "1/2-1/2"]
[Annotator "TA"]
[ECO "B33"]
[WhiteElo "2202"]
[BlackElo "2524"]
[PlyCount "82"]
[EventDate "2024.07.16"]
[EventType "swiss"]
[EventCountry "CZE"]
[SourceTitle "playchess.com"]
[Source "ChessBase"]
[SourceQuality "1"]
[TimeControl "1200+10"]

{[%evp 17,82,59,53,52,60,22,69,83,122,21,118,117,122,85,96,85,92,89,101,93,93,103,102,97,113,102,104,38,69,56,100,36,65,78,163,160,208,208,319,340,336,330,325,187,193,126,276,268,269,134,231,212,220,220,188,44,44,44,44,44,44,44,44,44,44,0,0]} 1. e4 {[%emt 0:00:03]} c5 {[%emt 0:07:18]} 2. Nf3 {[%emt 0:00:08][%cal Bg1f3,Bf3d4,Bd4b5,Bb5a3,Ba3c4][%mdl 32]} Nc6 {[%emt 0:00:02]} 3. Nc3 {[%emt 0:00:13]} e6 {[%emt 0:00:28]} 4. d4 {[%emt 0:00:25]} cxd4 {[%emt 0:00:02]} 5. Nxd4 {[%emt 0:00:01]} Nf6 {[%emt 0:00:14]} 6. Ndb5 {[%emt 0:00:21]} d6 {[%emt 0:00:25]} 7. Bf4 {[%emt 0:00:17]} e5 {[%emt 0:00:02]} 8. Bg5 {[%emt 0:00:01]} a6 {[%emt 0:00:02]} 9. Na3 {[%emt 0:00:06]} Be6 {[%emt 0:00:09]} 10. Nc4 {[%emt 0:02:23]} Rb8 {[%emt 0:00:08]} 11. Ne3 {[%emt 0:00:46]} Nd4 {[%emt 0:00:57]} (11... Be7 $11) 12. Ncd5 $14 {[%emt 0:01:03] Weiß steht etwas besser.} Be7 {[%emt 0:01:49]} 13. Nxe7 {[%emt 0:01:03]} (13. Bxf6 $16 Bxf6 14. Nxf6+ (14. c3 Bxd5 15. Nxd5 Ne6 $16) 14... Qxf6 15. c3) 13... Qxe7 {[%emt 0:00:31]} (13... Nxe4 $1 $11 {bleibt in der Remisbreite.} 14. Bh4 g5) 14. c3 $16 {[%emt 0:00:03]} Nc6 {[%emt 0:00:06]} 15. Bc4 {[%emt 0:00:27]} Rd8 {[%emt 0:00:29]} 16. Nd5 {[%emt 0:01:00]} Bxd5 {[%emt 0:00:07]} 17. Bxd5 {[%emt 0:00:01]} h6 {[%emt 0:00:12]} 18. Bxf6 {[%emt 0:00:25]} Qxf6 {[%emt 0:00:18]} 19. Bxc6+ {[%emt 0:00:37]} bxc6 {[%emt 0:00:01]} 20. Qa4 $1 {[%emt 0:00:01][%csl LRa6,LRc6]} d5 {[%emt 0:00:01]} 21. exd5 {[%emt 0:00:54]} Rxd5 {[%emt 0:00:01]} 22. O-O {[%emt 0:00:04]} ({Vorzuziehen ist} 22. Qxa6 $16 O-O 23. a4) 22... O-O {[%emt 0:00:12]} 23. Qxa6 {[%emt 0:00:06]} Rd2 {[%emt 0:01:17]} 24. Qb6 {[%emt 0:00:08]} (24. b4 $16) 24... e4 {[%emt 0:00:08]} 25. a4 {[%emt 0:00:12]} Qe5 {[%emt 0:00:48]} (25... Re8 $16) 26. a5 {[%emt 0:01:08]} (26. Qxc6 Rxb2 27. a5 Rc2 $14) 26... Rb8 {[%emt 0:00:12] Verhindert a6.} (26... e3 $16 {ist wohl besser.} 27. Qxe3 (27. Qxc6 $2 e2 $19) 27... Qxe3 28. fxe3 Rxb2) 27. Qxc6 $18 {[%emt 0:00:03] Und a6 würde nun gewinnen.} e3 {[%emt 0:00:31]} (27... Rdxb2 {kämpft weiter.} 28. a6 R2b6) 28. a6 $1 {[%emt 0:01:43] a7 wäre nun fies.} exf2+ {[%emt 0:01:38]} 29. Kh1 $1 {[%emt 0:00:10] Zielt auf a7 ab.} (29. Rxf2 Rxf2 30. Kxf2 Rxb2+ 31. Kf1 Qe2+ 32. Kg1 Qf2+ 33. Kh1 Re2 $11) 29... Rd6 {[%emt 0:00:16]} 30. Qf3 {[%emt 0:00:21]} (30. Qc7 $142 Ra8 31. b4 (31. Rxf2 $2 Rd1+ 32. Rxd1 Qxc7 $19)) 30... Rf6 {[%emt 0:00:24]} 31. Qg3 {[%emt 0:02:38]} (31. Qd3 $18) 31... Qe8 {[%emt 0:00:22]} (31... Qxg3 $16 32. hxg3 Ra8) 32. b4 {[%emt 0:01:00]} (32. Rxf2 Rxa6 33. Raf1 Rb7 $16) 32... Ra8 {[%emt 0:01:52][%cal Oe8e2] [#]} 33. a7 {[%emt 0:00:15]} ({Weniger gut wäre} 33. Rxf2 Raxa6 34. Rb1 Rfe6 $14) (33. Qd3 $1 $18 {und der Rest ist Schweigen.}) 33... Qc8 {[%emt 0:01:33] Verhindert h3} (33... Qb5 $16) 34. h3 {[%emt 0:00:23]} ({Jedoch nicht} 34. Rxf2 $6 Ra6 35. Rxa6 Qxa6 36. Qb8+ Kh7 $16) 34... Ra6 {[%emt 0:00:23]} 35. Qxf2 {[%emt 0:01:05]} R8xa7 {[%emt 0:00:23] [#]} 36. Qxa7 {[%emt 0:00:49]} (36. Rxa6 $1 $18 Qxa6 37. Re1) 36... Rxa7 $14 {[%emt 0:00:02]} 37. Rxa7 {[%emt 0:00:01] Und jetzt b5 wäre schön.} Qxc3 $18 {[%emt 0:00:03] KQ-KRR} 38. b5 {[%emt 0:03:38]} Qd3 {[%emt 0:01:02]} 39. Rfxf7 {[%emt 0:01:53]} Qd1+ {[%emt 0:00:09]} 40. Kh2 {[%emt 0:00:00]} Qd6+ {[%emt 0:00:02]} 41. Kh1 {[%emt 0:00:19]} Qd1+ {[%emt 0:00:01] Schwarz rettet sich ins Remis.   Gewichteter Fehlerwert: Weiß=0.36/Schwarz=0.36.  Fehler:       	Weiß=7     	Schwarz=7     Ungenau:       	Weiß=3     	Schwarz=3     OK:         	Weiß=7     	Schwarz=8     Bester:       	Weiß=4     	Schwarz=7     Stark:        	Weiß=3     	---} 1/2-1/2

[Event "Czech Open Rapid G1 2024"]
[Site "Pardubice"]
[Date "2024.07.18"]
[Round "4.4"]
[White "Kuegel, Tobias"]
[Black "Pulpan, Jakub"]
[Result "1/2-1/2"]
[Annotator "TA"]
[ECO "C68"]
[WhiteElo "2416"]
[BlackElo "2383"]
[PlyCount "76"]
[EventDate "2024.07.16"]
[EventType "swiss"]
[EventCountry "CZE"]
[SourceTitle "playchess.com"]
[Source "ChessBase"]
[SourceQuality "1"]
[TimeControl "1200+10"]

{[%evp 15,76,28,37,13,6,8,26,28,34,26,31,26,27,16,27,24,94,53,61,66,62,62,61,57,59,60,80,77,121,36,39,21,22,6,20,4,7,4,20,20,20,22,28,0,0,0,0,0,0,0,0,0,0,0,0,0,0,0,0,0,0,0,0]} 1. e4 {[%emt 0:08:35]} e5 {[%emt 0:00:12]} 2. Nf3 {[%emt 0:00:05]} Nc6 {[%emt 0:00:03]} 3. Bb5 {[%emt 0:00:09]} a6 {[%emt 0:00:19]} 4. Bxc6 {[%emt 0:00:01]} dxc6 {[%emt 0:00:03]} 5. O-O {[%emt 0:00:03]} Bg4 {[%emt 0:02:58]} 6. h3 {[%emt 0:00:01]} Bxf3 {[%emt 0:00:14]} 7. Qxf3 {[%emt 0:00:02]} Qd7 {[%emt 0:00:18]} 8. d3 {[%emt 0:00:58]} Ne7 {[%emt 0:00:29]} 9. Qg4 {[%emt 0:01:07]} Qxg4 {[%emt 0:01:04]} 10. hxg4 {[%emt 0:00:02]} Ng6 {[%emt 0:00:30]} 11. Be3 {[%emt 0:00:35] White has an edge.} Bd6 {[%emt 0:00:40]} 12. g3 {[%emt 0:00:10]} h5 {[%emt 0:01:30]} 13. gxh5 {[%emt 0:00:08]} Rxh5 {[%emt 0:00:02]} 14. Nd2 {[%emt 0:00:29]} c5 {[%emt 0:00:52]} 15. Kg2 {[%emt 0:00:18][%cal Bg1g2,Bg2f3,Bf3g4][%mdl 32]} Nf4+ {[%emt 0:01:21]} 16. Kf3 {[%emt 0:03:15]} Ne6 {[%emt 0:00:41]} 17. Rh1 {[%emt 0:00:12]} Rxh1 {[%emt 0:00:27]} 18. Rxh1 {[%emt 0:00:01]} f6 {[%emt 0:00:42]} 19. Kg4 {[%emt 0:00:52]} Kf7 {[%emt 0:00:21]} 20. f4 {[%emt 0:00:56]} g6 {[%emt 0:00:16]} 21. f5 {[%emt 0:01:46]} Ng7 {[%emt 0:01:59]} 22. fxg6+ {[%emt 0:02:25]} ({White should try} 22. Rh6 $16 gxf5+ 23. exf5) 22... Kxg6 $14 {[%emt 0:00:01]} 23. Nf3 {[%emt 0:00:15] Threatening Nh4+.} Rg8 {[%emt 0:00:53]} 24. Nh4+ {[%emt 0:00:03]} Kf7 {[%emt 0:00:01]} 25. Kf3 {[%emt 0:00:12]} Rh8 {[%emt 0:01:04]} 26. Kg2 {[%emt 0:00:02]} b6 {[%emt 0:03:26]} 27. Nf5 {[%emt 0:00:59]} Rxh1 {[%emt 0:00:04]} 28. Kxh1 {[%emt 0:00:02]} Kg6 {[%emt 0:00:05]} 29. Nxg7 {[%emt 0:00:08]} Kxg7 $11 {[%emt 0:00:01][%mdl 4096] Endgame. KB-KB. The position is equal.} 30. Kg2 {[%emt 0:00:09]} Kg6 {[%emt 0:00:01]} 31. Kf3 {[%emt 0:00:09]} Kh5 {[%emt 0:00:13]} 32. Bf2 {[%emt 0:00:33]} Bf8 {[%emt 0:00:03]} 33. c4 {[%emt 0:00:36]} Bh6 {[%emt 0:00:10]} 34. Be1 {[%emt 0:00:13]} Bc1 {[%emt 0:00:14]} 35. Bc3 {[%emt 0:00:16]} Kg5 36. b3 {[%emt 0:00:04]} Kh5 {[%emt 0:00:16]} 37. a4 {[%emt 0:00:05]} Kg5 {[%emt 0:00:28]} 38. Be1 {[%emt 0:00:06]} a5 {[%emt 0:00:23] Weighted Error Value: White=0.16 (very precise) /Black=0.11 (very precise) .  Mistake:       	White=1     	Black=1      Inaccurate:     	White=2     	Black=1      OK:         	White=9     	Black=14     Best:        	White=1     	Black=1} 1/2-1/2

[Event "Czech Open Rapid G1 2024"]
[Site "Pardubice"]
[Date "2024.07.18"]
[Round "4.5"]
[White "Jirka, Jiri"]
[Black "Krak, Tomas"]
[Result "1-0"]
[Annotator "TA"]
[ECO "A62"]
[WhiteElo "2387"]
[BlackElo "2229"]
[PlyCount "75"]
[EventDate "2024.07.16"]
[EventType "swiss"]
[EventCountry "CZE"]
[SourceTitle "playchess.com"]
[Source "ChessBase"]
[SourceQuality "1"]
[TimeControl "1200+10"]

{[%evp 20,75,20,15,18,22,18,8,10,18,10,12,23,24,85,58,54,50,70,79,75,43,93,46,88,93,105,54,157,167,184,179,182,182,210,182,187,187,266,267,276,268,311,307,592,487,452,403,411,385,829,786,29985,29985,29988,29989,29989,29990]} 1. d4 {[%emt 0:00:15]} Nf6 {[%emt 0:00:02]} 2. c4 {[%emt 0:00:02]} c5 {[%emt 0:00:01]} 3. d5 {[%emt 0:00:03]} e6 {[%emt 0:00:02]} 4. Nc3 {[%emt 0:00:06]} exd5 {[%emt 0:00:01]} 5. cxd5 {[%emt 0:00:03]} d6 {[%emt 0:00:01]} 6. Nf3 {[%emt 0:00:06]} g6 {[%emt 0:00:02]} 7. g3 {[%emt 0:00:04]} Bg7 {[%emt 0:00:01]} 8. Bg2 {[%emt 0:00:01]} O-O {[%emt 0:00:03]} 9. O-O {[%emt 0:00:03]} Re8 {[%emt 0:00:01]} 10. h3 {[%emt 0:01:29]} a6 {[%emt 0:00:02]} 11. a4 {[%emt 0:00:01]} Ne4 {[%emt 0:01:51]} 12. Nxe4 {[%emt 0:02:03]} Rxe4 {[%emt 0:00:01]} 13. Nd2 {[%emt 0:00:04]} Rb4 {[%emt 0:00:31] The position is equal.} 14. Ra2 {[%emt 0:03:41]} Nd7 {[%emt 0:00:48]} 15. b3 {[%emt 0:00:08]} b5 {[%emt 0:06:35]} 16. Ba3 {[%emt 0:02:48] Against a5} Rd4 {[%emt 0:00:22]} (16... a5 $11 {remains equal.}) 17. e3 {[%emt 0:00:22]} Rd3 {[%emt 0:00:11]} 18. Be4 {[%emt 0:02:54]} Rc3 {[%emt 0:01:47]} 19. Bb2 {[%emt 0:00:33] [#] Strongly threatening axb5.} b4 {[%emt 0:00:06][%cal Oa6a5]} 20. Bxc3 {[%emt 0:02:52]} (20. Bg2 $5) 20... Bxc3 {[%emt 0:00:25]} ({Black should play} 20... bxc3 $14 21. Nc4 Nb6) 21. Nc4 {[%emt 0:00:22]} (21. a5 $16) 21... Ne5 {[%emt 0:00:49]} 22. Nxe5 {[%emt 0:00:10]} Bxe5 {[%emt 0:00:02]} 23. Kh2 {[%emt 0:00:34]} (23. f4 $16 Bg7 24. Kh2) 23... h5 {[%emt 0:00:20]} (23... c4 $1 $14) 24. f4 $16 {[%emt 0:00:23]} Bg7 {[%emt 0:00:55]} 25. Bd3 {[%emt 0:03:25]} h4 {[%emt 0:05:29]} 26. g4 {[%emt 0:00:41][%cal Bg3g4,Bg4g5][%mdl 32]} Bb7 {[%emt 0:00:35]} 27. Qf3 {[%emt 0:00:13]} Qf6 {[%emt 0:00:26]} 28. g5 {[%emt 0:00:24]} Qe7 {[%emt 0:00:01]} (28... Qc3 $142 29. Bc4 Re8) 29. e4 $18 {[%emt 0:00:10]} Re8 {[%emt 0:00:14]} 30. Re2 {[%emt 0:00:15]} Bc8 {[%emt 0:01:37]} 31. Qf2 {[%emt 0:00:01]} f6 $2 {[%emt 0:00:47]} (31... Bh8 32. Kg2 (32. Qxh4 Bd4 $18) 32... Bd4 33. Qxh4 Qf8) 32. gxf6 Qxf6 {[%emt 0:00:01]} 33. Qg2 {[%emt 0:00:31][%cal Oe4e5] [#] e5! is the strong threat.} ({Don't take} 33. e5 dxe5 34. fxe5 (34. Qxc5 Bh6 $18) 34... Qxf2+ 35. Rfxf2 Bxe5+ 36. Kh1 Kg7) 33... Rf8 {[%emt 0:00:19]} 34. Ref2 {[%emt 0:00:09]} g5 $2 {[%emt 0:00:13]} (34... Bd7 35. Bxa6 Kh7) 35. e5 {[%emt 0:00:50]} dxe5 {[%emt 0:01:00] Black is weak on the light squares} 36. fxg5 {[%emt 0:00:04] White mates.} Qd6 {[%emt 0:00:04]} 37. Qe4 {[%emt 0:00:05][%csl Gd3][%cal Re4h7]} Rxf2+ {[%emt 0:00:03]} 38. Rxf2 {[%emt 0:00:04] Weighted Error Value: White=0.14 (very precise) /Black=0.61.  Mistake:       	White=2     	Black=6      Inaccurate:     	White=2     	Black=2      OK:         	White=11    	Black=6      Best:        	White=1     	---} 1-0

[Event "Czech Open Rapid G1 2024"]
[Site "Pardubice"]
[Date "2024.07.18"]
[Round "4.6"]
[White "Abdulov, Orkhan"]
[Black "Johansson, Linus"]
[Result "1-0"]
[Annotator "RC"]
[ECO "C05"]
[WhiteElo "2382"]
[BlackElo "2451"]
[PlyCount "65"]
[EventDate "2024.07.16"]
[EventType "swiss"]
[EventCountry "CZE"]
[SourceTitle "playchess.com"]
[Source "ChessBase"]
[SourceQuality "1"]
[TimeControl "1200+10"]

1. e4 {[%emt 0:02:21]} e6 {[%emt 0:00:15]} 2. d4 {[%emt 0:00:12]} d5 {[%emt 0:00:01]} 3. Nc3 {[%emt 0:00:07]} Nf6 {[%emt 0:00:02]} 4. e5 {[%emt 0:00:35]} Nfd7 {[%emt 0:00:02]} 5. f4 {[%emt 0:00:19]} c5 {[%emt 0:00:01]} 6. Nf3 {[%emt 0:00:01]} Nc6 {[%emt 0:00:01]} 7. Ne2 {[%emt 0:00:27]} a5 {[%emt 0:01:40]} 8. g3 {[%emt 0:00:37]} a4 {[%emt 0:00:02]} 9. a3 {[%emt 0:00:41]} Nb6 {[%emt 0:00:31]} 10. Bg2 {[%emt 0:02:12]} Bd7 {[%emt 0:00:42]} 11. O-O {[%emt 0:00:06]} g6 {[%emt 0:00:30]} 12. Kh1 {[%emt 0:01:10]} h5 {[%emt 0:00:19]} 13. h4 {[%emt 0:00:28]} Qc7 {[%emt 0:01:06]} 14. Rb1 {[%emt 0:03:18]} Nc4 {[%emt 0:00:35]} 15. Qd3 {[%emt 0:00:14]} Ne7 {[%emt 0:01:13]} 16. b3 {[%emt 0:01:11]} axb3 {[%emt 0:00:15]} 17. cxb3 {[%emt 0:00:03]} Nxa3 {[%emt 0:00:08]} 18. Bxa3 {[%emt 0:04:00]} Rxa3 {[%emt 0:00:01]} 19. dxc5 {[%emt 0:00:09]} Qxc5 {[%emt 0:01:11]} 20. Rfc1 {[%emt 0:00:30]} Qb6 {[%emt 0:00:25]} 21. Ned4 {[%emt 0:00:33]} Bg7 {[%emt 0:01:28]} 22. Ng5 {[%emt 0:00:24]} Qa6 {[%emt 0:03:07]} 23. Qc3 {[%emt 0:01:04]} Bc6 {[%emt 0:04:25]} 24. Qc5 {[%emt 0:01:11]} Qa7 {[%emt 0:00:42]} 25. Qd6 {[%emt 0:00:19]} Nc8 {[%emt 0:01:18]} 26. Qc7 {[%emt 0:00:34]} O-O {[%emt 0:00:02]} 27. Ndxe6 {[%emt 0:00:32]} Qf2 {[%emt 0:04:11]} 28. Nxf8 {[%emt 0:00:10]} Be8 {[%emt 0:00:01]} 29. Rc2 {[%emt 0:00:42]} Qxg3 {[%emt 0:00:08]} 30. Qxc8 {[%emt 0:00:05]} Qxh4+ {[%emt 0:00:06]} 31. Kg1 {[%emt 0:00:14]} Qxf4 {[%emt 0:00:18]} 32. Qxe8 {[%emt 0:00:06]} Bxf8 {[%emt 0:00:01]} 33. Rf2 {[%emt 0:00:16]} 1-0

[Event "Czech Open Rapid G1 2024"]
[Site "Pardubice"]
[Date "2024.07.18"]
[Round "4.7"]
[White "Jares, Michal"]
[Black "Konopka, Michal"]
[Result "1/2-1/2"]
[Annotator "RC"]
[ECO "A35"]
[WhiteElo "2382"]
[BlackElo "2326"]
[PlyCount "71"]
[EventDate "2024.07.16"]
[EventType "swiss"]
[EventCountry "CZE"]
[SourceTitle "playchess.com"]
[Source "ChessBase"]
[SourceQuality "1"]
[TimeControl "1200+10"]

1. Nf3 {[%emt 0:01:28]} c5 {[%emt 0:00:05]} 2. c4 {[%emt 0:00:06]} Nc6 {[%emt 0:00:28]} 3. Nc3 {[%emt 0:00:05]} g6 {[%emt 0:00:06]} 4. e3 {[%emt 0:00:03]} Nf6 {[%emt 0:02:35]} 5. d4 {[%emt 0:00:04]} cxd4 {[%emt 0:00:35]} 6. exd4 {[%emt 0:00:02]} d5 {[%emt 0:00:02]} 7. cxd5 {[%emt 0:00:13]} Nxd5 {[%emt 0:00:09]} 8. Qb3 {[%emt 0:00:12]} Nxc3 {[%emt 0:00:42]} 9. Bc4 {[%emt 0:00:11]} Nd5 {[%emt 0:03:05]} 10. Bxd5 {[%emt 0:00:04]} e6 {[%emt 0:00:00]} 11. Bxc6+ {[%emt 0:00:11]} bxc6 {[%emt 0:00:03]} 12. O-O {[%emt 0:00:14]} Qd5 {[%emt 0:00:58]} 13. Be3 {[%emt 0:00:18]} Qxb3 {[%emt 0:00:47]} 14. axb3 {[%emt 0:00:04]} f6 {[%emt 0:00:07]} 15. Rfc1 {[%emt 0:00:13]} Bd7 {[%emt 0:00:15]} 16. Nd2 {[%emt 0:01:58]} Bb4 {[%emt 0:03:56]} 17. Ne4 {[%emt 0:04:09]} Ke7 {[%emt 0:00:07]} 18. Bd2 {[%emt 0:02:18]} Bxd2 {[%emt 0:00:18]} 19. Nxd2 {[%emt 0:00:01]} Rhb8 {[%emt 0:00:38]} 20. Kf1 {[%emt 0:00:59]} Rb4 {[%emt 0:02:06]} 21. Rc4 {[%emt 0:00:53]} c5 {[%emt 0:02:54]} 22. Rxc5 {[%emt 0:00:11]} Rxd4 {[%emt 0:00:28]} 23. Nc4 {[%emt 0:01:43]} Rb8 {[%emt 0:01:06]} 24. Rxa7 {[%emt 0:02:02]} Rxb3 {[%emt 0:00:00]} 25. Na5 {[%emt 0:01:12]} Rd1+ {[%emt 0:00:00]} 26. Ke2 {[%emt 0:00:03]} Rbd3 {[%emt 0:00:00]} 27. Rc2 {[%emt 0:01:00]} e5 {[%emt 0:00:00]} 28. Nc4 {[%emt 0:00:41]} Ke6 {[%emt 0:01:31]} 29. Ra6+ {[%emt 0:00:11]} Ke7 {[%emt 0:00:02]} 30. Ra7 {[%emt 0:00:10]} Ke6 {[%emt 0:00:01]} 31. Ne3 {[%emt 0:01:34]} Bb5 {[%emt 0:00:16]} 32. Nxd1 {[%emt 0:00:16]} Rd7+ {[%emt 0:00:10]} 33. Ke1 {[%emt 0:00:25]} Rxa7 {[%emt 0:00:01]} 34. Rc5 {[%emt 0:00:18]} Rb7 {[%emt 0:00:21]} 35. b3 {[%emt 0:00:43]} Bd7 {[%emt 0:00:29]} 36. Rc3 {[%emt 0:00:40]} 1/2-1/2

[Event "Czech Open Rapid G1 2024"]
[Site "Pardubice"]
[Date "2024.07.18"]
[Round "4.8"]
[White "Cerveny, Martin"]
[Black "Seger, Ruediger"]
[Result "1/2-1/2"]
[Annotator "RC"]
[ECO "D91"]
[WhiteElo "2325"]
[BlackElo "2264"]
[PlyCount "90"]
[EventDate "2024.07.16"]
[EventType "swiss"]
[EventCountry "CZE"]
[SourceTitle "playchess.com"]
[Source "ChessBase"]
[SourceQuality "1"]
[TimeControl "1200+10"]

1. d4 {[%emt 0:00:02]} Nf6 {[%emt 0:00:01]} 2. Nf3 {[%emt 0:00:01]} g6 {[%emt 0:00:01]} 3. c4 {[%emt 0:00:03]} Bg7 {[%emt 0:00:02]} 4. Nc3 {[%emt 0:00:02]} d5 {[%emt 0:00:01]} 5. Bg5 {[%emt 0:00:22]} Ne4 {[%emt 0:00:15]} 6. cxd5 {[%emt 0:00:05]} Nxg5 {[%emt 0:00:05]} 7. Nxg5 {[%emt 0:00:02]} e6 {[%emt 0:00:01]} 8. Nf3 {[%emt 0:00:03]} exd5 {[%emt 0:00:02]} 9. e3 {[%emt 0:00:01]} O-O {[%emt 0:00:04]} 10. Be2 {[%emt 0:00:03]} Be6 {[%emt 0:00:59]} 11. O-O {[%emt 0:00:03]} Nd7 {[%emt 0:00:40]} 12. Qb3 {[%emt 0:00:39]} Nb6 {[%emt 0:00:33]} 13. a4 {[%emt 0:00:24]} a5 {[%emt 0:00:08]} 14. Rac1 {[%emt 0:00:22]} c6 {[%emt 0:00:41]} 15. Rfd1 {[%emt 0:00:14]} Re8 {[%emt 0:01:03]} 16. Nb1 {[%emt 0:00:40]} Rb8 {[%emt 0:01:07]} 17. Nbd2 {[%emt 0:00:14]} Nd7 {[%emt 0:00:18]} 18. h3 {[%emt 0:01:25]} Bf8 {[%emt 0:02:18]} 19. Nf1 {[%emt 0:01:13]} Bd6 {[%emt 0:00:30]} 20. Qc3 {[%emt 0:00:27]} Nf6 {[%emt 0:00:43]} 21. Bd3 {[%emt 0:02:11]} Bd7 {[%emt 0:02:31]} 22. Ne5 {[%emt 0:00:30]} Qc7 {[%emt 0:03:32]} 23. f4 {[%emt 0:00:04]} Nh5 {[%emt 0:00:32]} 24. g4 {[%emt 0:01:52]} Ng7 {[%emt 0:00:01]} 25. Qc2 {[%emt 0:00:45]} f6 {[%emt 0:01:35]} 26. Nf3 {[%emt 0:00:02]} Re7 {[%emt 0:00:56]} 27. Qf2 {[%emt 0:01:41]} Rf8 {[%emt 0:01:00]} 28. b3 {[%emt 0:01:52]} Qb6 {[%emt 0:00:45]} 29. Rb1 {[%emt 0:00:46]} c5 {[%emt 0:00:12]} 30. Kg2 {[%emt 0:00:09]} cxd4 {[%emt 0:00:53]} 31. Nxd4 {[%emt 0:00:04]} Bc5 {[%emt 0:00:08]} 32. Be2 {[%emt 0:03:15]} Ne6 {[%emt 0:00:41]} 33. f5 {[%emt 0:02:48]} Nxd4 {[%emt 0:00:42]} 34. exd4 {[%emt 0:00:02]} Bd6 {[%emt 0:00:04]} 35. Bf3 {[%emt 0:00:12]} Bc6 {[%emt 0:00:24]} 36. Ne3 {[%emt 0:00:24]} Kg7 {[%emt 0:01:14]} 37. Nxd5 {[%emt 0:00:23]} Bxd5 {[%emt 0:00:04]} 38. Bxd5 {[%emt 0:00:01]} Bb8 {[%emt 0:00:07]} 39. Be6 {[%emt 0:00:10]} Qd6 {[%emt 0:00:06]} 40. Kf1 {[%emt 0:00:16]} Ba7 {[%emt 0:00:29]} 41. Rbc1 {[%emt 0:00:01]} Rd8 {[%emt 0:00:07]} 42. Rc4 {[%emt 0:00:05]} Rc7 {[%emt 0:00:01]} 43. Kg2 {[%emt 0:00:29]} Rxc4 {[%emt 0:00:02]} 44. bxc4 {[%emt 0:00:16]} Bxd4 {[%emt 0:00:02]} 45. Qf3 {[%emt 0:00:01]} b6 {[%emt 0:00:18]} 1/2-1/2